[Event "Titled Tuesday Blitz August 15 Late 2023"]
[White "Holt, Conrad"]
[Black "Vachier-Lagrave, Maxime"]
[WhiteFideId "2034387"]
[BlackFideId "623539"]
[WhiteElo "2903"]
[BlackElo "3133"]
[Result "1/2-1/2"]
[Round "6"]
[TimeControl "180+1"]
[Date "2023.08.15"]
[WhiteClock "0:00:18"]
[BlackClock "0:00:09"]
[Board "2"]

1. d4 {[%clk 0:03:00]}  d5 {[%clk 0:02:59]} 2. c4 {[%clk 0:03:01]}  dxc4 {[%clk 0:03:00]} 3. e3 {[%clk 0:03:00]}  Nf6 {[%clk 0:03:00]} 4. Bxc4 {[%clk 0:03:00]}  e6 {[%clk 0:03:00]} 5. Nf3 {[%clk 0:03:00]}  a6 {[%clk 0:03:01]} 6. O-O {[%clk 0:02:57]}  c5 {[%clk 0:03:01]} 7. Be2 {[%clk 0:02:55]}  cxd4 {[%clk 0:03:00]} 8. exd4 {[%clk 0:02:52]}  Be7 {[%clk 0:02:53]} 9. Ne5 {[%clk 0:02:51]}  Bd7 {[%clk 0:02:51]} 10. Nc3 {[%clk 0:02:47]}  Bc6 {[%clk 0:02:49]} 11. Bg5 {[%clk 0:02:46]}  O-O {[%clk 0:02:49]} 12. Re1 {[%clk 0:02:43]}  Nd5 {[%clk 0:02:42]} 13. Be3 {[%clk 0:02:31]}  Nxe3 {[%clk 0:02:28]} 14. fxe3 {[%clk 0:02:31]}  Nd7 {[%clk 0:02:29]} 15. Nxc6 {[%clk 0:02:23]}  bxc6 {[%clk 0:02:30]} 16. Rc1 {[%clk 0:02:19]}  c5 {[%clk 0:01:57]} 17. d5 {[%clk 0:02:19]}  exd5 {[%clk 0:01:52]} 18. Nxd5 {[%clk 0:02:19]}  Nf6 {[%clk 0:01:49]} 19. Bc4 {[%clk 0:02:14]}  Nxd5 {[%clk 0:01:45]} 20. Bxd5 {[%clk 0:02:14]}  Rb8 {[%clk 0:01:44]} 21. b3 {[%clk 0:02:10]}  Kh8 {[%clk 0:01:36]} 22. Bc4 {[%clk 0:01:56]}  Qb6 {[%clk 0:01:30]} 23. Qh5 {[%clk 0:01:45]}  g6 {[%clk 0:01:29]} 24. Qh6 {[%clk 0:01:39]}  Bf6 {[%clk 0:01:23]} 25. Rcd1 {[%clk 0:01:34]}  Rbd8 {[%clk 0:01:01]} 26. Rf1 {[%clk 0:01:22]}  Bg7 {[%clk 0:00:56]} 27. Qf4 {[%clk 0:01:20]}  Rxd1 {[%clk 0:00:49]} 28. Rxd1 {[%clk 0:01:20]}  a5 {[%clk 0:00:41]} 29. Rd7 {[%clk 0:01:15]}  f5 {[%clk 0:00:34]} 30. h4 {[%clk 0:01:11]}  Qf6 {[%clk 0:00:33]} 31. h5 {[%clk 0:00:46]}  gxh5 {[%clk 0:00:26]} 32. a4 {[%clk 0:00:32]}  Bh6 {[%clk 0:00:20]} 33. Qf2 {[%clk 0:00:25]}  Qa1+ {[%clk 0:00:13]} 34. Kh2 {[%clk 0:00:10]}  Qe5+ {[%clk 0:00:14]} 35. Kh3 {[%clk 0:00:10]}  Bxe3 {[%clk 0:00:13]} 36. Qf3 {[%clk 0:00:07]}  f4 {[%clk 0:00:12]} 37. Qd5 {[%clk 0:00:05]}  Qxd5 {[%clk 0:00:08]} 38. Rxd5 {[%clk 0:00:05]}  f3 {[%clk 0:00:05]} 39. gxf3 {[%clk 0:00:03]}  Rxf3+ {[%clk 0:00:05]} 40. Kg2 {[%clk 0:00:03]}  Rf6 {[%clk 0:00:05]} 41. Rxh5 {[%clk 0:00:02]}  h6 {[%clk 0:00:05]} 42. Rd5 {[%clk 0:00:02]}  Kg7 {[%clk 0:00:01]} 43. Re5 {[%clk 0:00:03]}  Bd4 {[%clk 0:00:02]} 44. Re7+ {[%clk 0:00:03]}  Kg6 {[%clk 0:00:02]} 45. Re6 {[%clk 0:00:04]}  Rxe6 {[%clk 0:00:02]} 46. Bxe6 {[%clk 0:00:04]}  Kf6 {[%clk 0:00:03]} 47. Bc4 {[%clk 0:00:05]}  Ke5 {[%clk 0:00:04]} 48. Kh1 {[%clk 0:00:05]}  Be3 {[%clk 0:00:04]} 49. Bg8 {[%clk 0:00:06]}  Bg5 {[%clk 0:00:04]} 50. Bc4 {[%clk 0:00:07]}  Kf4 {[%clk 0:00:05]} 51. Bg8 {[%clk 0:00:07]}  Kg3 {[%clk 0:00:05]} 52. Bc4 {[%clk 0:00:08]}  h5 {[%clk 0:00:06]} 53. Bg8 {[%clk 0:00:09]}  h4 {[%clk 0:00:06]} 54. Bc4 {[%clk 0:00:10]}  h3 {[%clk 0:00:07]} 55. Bg8 {[%clk 0:00:11]}  h2 {[%clk 0:00:08]} 56. Bc4 {[%clk 0:00:12]}  Bf4 {[%clk 0:00:08]} 57. Bg8 {[%clk 0:00:12]}  Kf3 {[%clk 0:00:08]} 58. Bc4 {[%clk 0:00:13]}  Ke3 {[%clk 0:00:08]} 59. Bg8 {[%clk 0:00:14]}  Kd4 {[%clk 0:00:09]} 60. Bc4 {[%clk 0:00:15]}  Kc3 {[%clk 0:00:10]} 61. Bg8 {[%clk 0:00:16]}  Kd4 {[%clk 0:00:10]} 62. Bc4 {[%clk 0:00:16]}  Ke5 {[%clk 0:00:11]} 63. Bg8 {[%clk 0:00:16]}  Kf6 {[%clk 0:00:12]} 64. Bc4 {[%clk 0:00:17]}  Kg7 {[%clk 0:00:09]} 65. Bd5 {[%clk 0:00:18]} 1/2-1/2


[Site "https://www.chess.com"]

[Event "Titled Tuesday Blitz August 15 Late 2023"]
[White "Bluebaum, Matthias"]
[Black "Nakamura, Hikaru"]
[WhiteFideId "24651516"]
[BlackFideId "2016192"]
[WhiteElo "3038"]
[BlackElo "3226"]
[Result "0-1"]
[Round "6"]
[TimeControl "180+1"]
[Date "2023.08.15"]
[WhiteClock "0:00:27"]
[BlackClock "0:00:21"]
[Board "3"]

1. d4 {[%clk 0:03:00]}  a6 {[%clk 0:03:00]} 2. e4 {[%clk 0:02:58]}  c6 {[%clk 0:02:59]} 3. Nf3 {[%clk 0:02:43]}  d5 {[%clk 0:02:59]} 4. exd5 {[%clk 0:02:44]}  cxd5 {[%clk 0:02:59]} 5. c3 {[%clk 0:02:44]}  Bf5 {[%clk 0:02:57]} 6. Nh4 {[%clk 0:02:40]}  Be4 {[%clk 0:02:47]} 7. Nd2 {[%clk 0:02:35]}  Bg6 {[%clk 0:02:35]} 8. Nxg6 {[%clk 0:02:34]}  hxg6 {[%clk 0:02:36]} 9. Qb3 {[%clk 0:02:31]}  Qd7 {[%clk 0:02:34]} 10. Nf3 {[%clk 0:02:30]}  Nc6 {[%clk 0:02:34]} 11. Bd3 {[%clk 0:02:26]}  e6 {[%clk 0:02:34]} 12. Bf4 {[%clk 0:02:25]}  Nf6 {[%clk 0:02:29]} 13. h3 {[%clk 0:02:24]}  Be7 {[%clk 0:02:25]} 14. a4 {[%clk 0:02:20]}  O-O {[%clk 0:02:23]} 15. h4 {[%clk 0:02:19]}  Bd6 {[%clk 0:02:22]} 16. Bg5 {[%clk 0:02:01]}  Rfe8 {[%clk 0:02:15]} 17. Kf1 {[%clk 0:01:42]}  Ne4 {[%clk 0:02:14]} 18. Re1 {[%clk 0:01:36]}  f5 {[%clk 0:02:11]} 19. h5 {[%clk 0:01:31]}  gxh5 {[%clk 0:02:09]} 20. Rxh5 {[%clk 0:01:32]}  Qf7 {[%clk 0:02:09]} 21. Rh3 {[%clk 0:01:29]}  Rab8 {[%clk 0:02:01]} 22. Be3 {[%clk 0:01:23]}  Qg6 {[%clk 0:01:47]} 23. Qd1 {[%clk 0:01:21]}  Kf7 {[%clk 0:01:20]} 24. Nh4 {[%clk 0:01:17]}  Qf6 {[%clk 0:01:17]} 25. Qh5+ {[%clk 0:01:07]}  g6 {[%clk 0:01:18]} 26. Qh7+ {[%clk 0:01:07]}  Qg7 {[%clk 0:01:18]} 27. Nf3 {[%clk 0:00:52]}  Rh8 {[%clk 0:01:10]} 28. Ng5+ {[%clk 0:00:30]}  Nxg5 {[%clk 0:01:08]} 29. Qxg7+ {[%clk 0:00:31]}  Kxg7 {[%clk 0:01:09]} 30. Bxg5 {[%clk 0:00:32]}  Rxh3 {[%clk 0:01:08]} 31. gxh3 {[%clk 0:00:33]}  Kf7 {[%clk 0:01:08]} 32. Kg2 {[%clk 0:00:33]}  Be7 {[%clk 0:01:03]} 33. Bf4 {[%clk 0:00:32]}  Rh8 {[%clk 0:01:02]} 34. b4 {[%clk 0:00:31]}  g5 {[%clk 0:01:02]} 35. Bd2 {[%clk 0:00:29]}  Rc8 {[%clk 0:00:59]} 36. Rb1 {[%clk 0:00:29]}  Nb8 {[%clk 0:00:58]} 37. a5 {[%clk 0:00:23]}  Nc6 {[%clk 0:00:57]} 38. Ra1 {[%clk 0:00:18]}  Na7 {[%clk 0:00:56]} 39. Rb1 {[%clk 0:00:17]}  Nb5 {[%clk 0:00:51]} 40. Rb3 {[%clk 0:00:17]}  Kg6 {[%clk 0:00:47]} 41. Kf3 {[%clk 0:00:17]}  Bd6 {[%clk 0:00:47]} 42. Kg2 {[%clk 0:00:17]}  Kf6 {[%clk 0:00:47]} 43. Kf3 {[%clk 0:00:17]}  Bc7 {[%clk 0:00:36]} 44. Kg2 {[%clk 0:00:16]}  Nd6 {[%clk 0:00:36]} 45. Be1 {[%clk 0:00:15]}  f4 {[%clk 0:00:28]} 46. Rb1 {[%clk 0:00:13]}  Bd8 {[%clk 0:00:24]} 47. Bd2 {[%clk 0:00:14]}  Ne4 {[%clk 0:00:21]} 48. Be1 {[%clk 0:00:09]}  Bc7 {[%clk 0:00:21]} 49. Kf3 {[%clk 0:00:09]}  Nd6 {[%clk 0:00:19]} 50. Bd2 {[%clk 0:00:09]}  Rh8 {[%clk 0:00:17]} 51. Kg2 {[%clk 0:00:10]}  Ne4 {[%clk 0:00:16]} 52. Be1 {[%clk 0:00:07]}  Nd6 {[%clk 0:00:16]} 53. Bd2 {[%clk 0:00:07]}  Nf5 {[%clk 0:00:17]} 54. Bxf5 {[%clk 0:00:06]}  Kxf5 {[%clk 0:00:18]} 55. b5 {[%clk 0:00:06]}  Ra8 {[%clk 0:00:13]} 56. b6 {[%clk 0:00:03]}  Bd6 {[%clk 0:00:13]} 57. Kf3 {[%clk 0:00:04]}  Rh8 {[%clk 0:00:13]} 58. Kg2 {[%clk 0:00:02]}  Rc8 {[%clk 0:00:14]} 59. Rh1 {[%clk 0:00:02]}  Be7 {[%clk 0:00:13]} 60. Kf3 {[%clk 0:00:02]}  Rh8 {[%clk 0:00:13]} 61. Kg2 {[%clk 0:00:02]}  Bd6 {[%clk 0:00:10]} 62. f3 {[%clk 0:00:03]}  Be7 {[%clk 0:00:09]} 63. Be1 {[%clk 0:00:03]}  Rc8 {[%clk 0:00:09]} 64. h4 {[%clk 0:00:04]}  gxh4 {[%clk 0:00:08]} 65. Bxh4 {[%clk 0:00:05]}  Rg8+ {[%clk 0:00:09]} 66. Kf2 {[%clk 0:00:05]}  Rh8 {[%clk 0:00:08]} 67. Bxe7 {[%clk 0:00:03]}  Rxh1 {[%clk 0:00:09]} 68. Bb4 {[%clk 0:00:04]}  Rc1 {[%clk 0:00:09]} 69. Ke2 {[%clk 0:00:04]}  Rc2+ {[%clk 0:00:10]} 70. Ke1 {[%clk 0:00:04]}  Rg2 {[%clk 0:00:10]} 71. Kf1 {[%clk 0:00:04]}  Ra2 {[%clk 0:00:11]} 72. Ke1 {[%clk 0:00:04]}  Kg5 {[%clk 0:00:11]} 73. Bd6 {[%clk 0:00:03]}  Kh5 {[%clk 0:00:12]} 74. Bxf4 {[%clk 0:00:04]}  Rxa5 {[%clk 0:00:13]} 75. Kd2 {[%clk 0:00:03]}  Rb5 {[%clk 0:00:13]} 76. Bc7 {[%clk 0:00:04]}  a5 {[%clk 0:00:14]} 77. Kc2 {[%clk 0:00:04]}  a4 {[%clk 0:00:14]} 78. Bd6 {[%clk 0:00:05]}  Rxb6 {[%clk 0:00:14]} 79. Bc5 {[%clk 0:00:06]}  Rb3 {[%clk 0:00:15]} 80. Ba3 {[%clk 0:00:07]}  Kg6 {[%clk 0:00:16]} 81. Bd6 {[%clk 0:00:07]}  Kf5 {[%clk 0:00:17]} 82. Be5 {[%clk 0:00:08]}  b5 {[%clk 0:00:18]} 83. Bd6 {[%clk 0:00:08]}  Kg6 {[%clk 0:00:18]} 84. Be7 {[%clk 0:00:08]}  Kh5 {[%clk 0:00:18]} 85. Bd6 {[%clk 0:00:09]}  Kh4 {[%clk 0:00:18]} 86. f4 {[%clk 0:00:09]}  Kg4 {[%clk 0:00:19]} 87. Kd3 {[%clk 0:00:09]}  a3 {[%clk 0:00:18]} 88. Kc2 {[%clk 0:00:10]}  a2 {[%clk 0:00:18]} 89. Kxb3 {[%clk 0:00:09]}  a1=Q {[%clk 0:00:19]} 90. Kb4 {[%clk 0:00:10]}  Kf5 {[%clk 0:00:19]} 91. Kc5 {[%clk 0:00:11]}  Qxc3+ {[%clk 0:00:19]} 92. Kxb5 {[%clk 0:00:12]}  Qxd4 {[%clk 0:00:20]} 93. Be5 {[%clk 0:00:13]}  Qxe5 {[%clk 0:00:20]} 94. fxe5 {[%clk 0:00:14]}  Kxe5 {[%clk 0:00:21]} 95. Kc5 {[%clk 0:00:14]}  Ke4 {[%clk 0:00:21]} 96. Kb6 {[%clk 0:00:15]}  d4 {[%clk 0:00:21]} 97. Ka7 {[%clk 0:00:16]}  d3 {[%clk 0:00:22]} 98. Ka8 {[%clk 0:00:17]}  d2 {[%clk 0:00:23]} 99. Ka7 {[%clk 0:00:18]}  d1=Q {[%clk 0:00:24]} 100. Kb8 {[%clk 0:00:19]}  Qc2 {[%clk 0:00:24]} 101. Kb7 {[%clk 0:00:20]}  Qc5 {[%clk 0:00:25]} 102. Ka8 {[%clk 0:00:21]}  Qb5 {[%clk 0:00:24]} 103. Ka7 {[%clk 0:00:22]}  Kd5 {[%clk 0:00:24]} 104. Ka8 {[%clk 0:00:22]}  e5 {[%clk 0:00:25]} 105. Ka7 {[%clk 0:00:23]}  e4 {[%clk 0:00:19]} 106. Ka8 {[%clk 0:00:24]}  e3 {[%clk 0:00:20]} 107. Ka7 {[%clk 0:00:25]}  e2 {[%clk 0:00:21]} 108. Ka8 {[%clk 0:00:26]}  Kc6 {[%clk 0:00:22]} 109. Ka7 {[%clk 0:00:27]}  Qb6+ {[%clk 0:00:20]} 110. Ka8 {[%clk 0:00:27]}  Qb7# {[%clk 0:00:21]} 0-1


[Site "https://www.chess.com"]

[Event "Titled Tuesday Blitz August 15 Late 2023"]
[White "Cordova, Emilio"]
[Black "Dubov, Daniil"]
[WhiteFideId "3801497"]
[BlackFideId "24126055"]
[WhiteElo "2876"]
[BlackElo "3038"]
[Result "0-1"]
[Round "6"]
[TimeControl "180+1"]
[Date "2023.08.15"]
[WhiteClock "0:00:00"]
[BlackClock "0:00:04"]
[Board "10"]

1. d4 {[%clk 0:02:16]}  Nf6 {[%clk 0:02:55]} 2. Nf3 {[%clk 0:02:17]}  d5 {[%clk 0:02:55]} 3. e3 {[%clk 0:02:18]}  g6 {[%clk 0:02:53]} 4. c4 {[%clk 0:02:18]}  Bg7 {[%clk 0:02:53]} 5. Nc3 {[%clk 0:02:19]}  O-O {[%clk 0:02:54]} 6. Qb3 {[%clk 0:02:19]}  c6 {[%clk 0:02:52]} 7. Bd2 {[%clk 0:02:18]}  dxc4 {[%clk 0:02:51]} 8. Bxc4 {[%clk 0:02:18]}  b5 {[%clk 0:02:51]} 9. Be2 {[%clk 0:02:18]}  a5 {[%clk 0:02:51]} 10. a3 {[%clk 0:02:12]}  Bf5 {[%clk 0:02:50]} 11. Rc1 {[%clk 0:02:09]}  Nbd7 {[%clk 0:02:48]} 12. O-O {[%clk 0:02:08]}  Ne4 {[%clk 0:02:43]} 13. Nxe4 {[%clk 0:02:07]}  Bxe4 {[%clk 0:02:44]} 14. Rfd1 {[%clk 0:02:07]}  Nb6 {[%clk 0:02:38]} 15. Be1 {[%clk 0:02:06]}  a4 {[%clk 0:02:26]} 16. Qb4 {[%clk 0:02:03]}  Rc8 {[%clk 0:02:20]} 17. Nd2 {[%clk 0:02:00]}  Bd5 {[%clk 0:02:17]} 18. e4 {[%clk 0:01:35]}  Be6 {[%clk 0:02:17]} 19. e5 {[%clk 0:01:24]}  Nd5 {[%clk 0:02:13]} 20. Qc5 {[%clk 0:01:24]}  Nf4 {[%clk 0:02:13]} 21. Bf1 {[%clk 0:01:23]}  Bd5 {[%clk 0:02:09]} 22. Nf3 {[%clk 0:00:45]}  Qd7 {[%clk 0:01:56]} 23. Qc3 {[%clk 0:00:44]}  Qg4 {[%clk 0:01:48]} 24. Kh1 {[%clk 0:00:33]}  f6 {[%clk 0:01:46]} 25. h3 {[%clk 0:00:21]}  Nxh3 {[%clk 0:01:31]} 26. Nh2 {[%clk 0:00:21]}  Qh5 {[%clk 0:01:31]} 27. f3 {[%clk 0:00:15]}  fxe5 {[%clk 0:01:17]} 28. gxh3 {[%clk 0:00:11]}  Rxf3 {[%clk 0:01:16]} 29. Nxf3 {[%clk 0:00:08]}  Bxf3+ {[%clk 0:01:17]} 30. Kg1 {[%clk 0:00:07]}  exd4 {[%clk 0:01:03]} 31. Qd2 {[%clk 0:00:07]}  Bh6 {[%clk 0:00:52]} 32. Qxd4 {[%clk 0:00:04]}  Qg5+ {[%clk 0:00:53]} 33. Kh2 {[%clk 0:00:04]}  Bg7 {[%clk 0:00:42]} 34. Qg1 {[%clk 0:00:03]}  Be5+ {[%clk 0:00:30]} 35. Bg3 {[%clk 0:00:03]}  Bxd1 {[%clk 0:00:25]} 36. Rxd1 {[%clk 0:00:03]}  Rf8 {[%clk 0:00:26]} 37. Bxe5 {[%clk 0:00:02]}  Qxe5+ {[%clk 0:00:26]} 38. Kh1 {[%clk 0:00:02]}  Qxb2 {[%clk 0:00:25]} 39. Bg2 {[%clk 0:00:03]}  Rf6 {[%clk 0:00:19]} 40. Qe1 {[%clk 0:00:03]}  Qxa3 {[%clk 0:00:19]} 41. Qe5 {[%clk 0:00:02]}  Qb4 {[%clk 0:00:16]} 42. Bxc6 {[%clk 0:00:02]}  Kg7 {[%clk 0:00:11]} 43. Bd5 {[%clk 0:00:02]}  a3 {[%clk 0:00:10]} 44. Re1 {[%clk 0:00:03]}  Kh6 {[%clk 0:00:06]} 45. Qe3+ {[%clk 0:00:02]}  g5 {[%clk 0:00:05]} 46. Qxe7 {[%clk 0:00:01]}  Qxe7 {[%clk 0:00:05]} 47. Rxe7 {[%clk 0:00:02]}  Rd6 {[%clk 0:00:06]} 48. Bb3 {[%clk 0:00:02]}  Rd3 {[%clk 0:00:05]} 49. Bg8 {[%clk 0:00:02]}  a2 {[%clk 0:00:02]} 50. Rxh7+ {[%clk 0:00:02]}  Kg6 {[%clk 0:00:03]} 51. Ra7 {[%clk 0:00:01]}  Rd1+ {[%clk 0:00:03]} 52. Kg2 {[%clk 0:00:00]}  a1=Q {[%clk 0:00:04]} 0-1


[Site "https://www.chess.com"]

[Event "Titled Tuesday Blitz August 15 Late 2023"]
[White "Andreikin, Dmitry"]
[Black "Kovalev, Vladislav"]
[WhiteFideId "4158814"]
[BlackFideId "13504398"]
[WhiteElo "3014"]
[BlackElo "2867"]
[Result "1/2-1/2"]
[Round "6"]
[TimeControl "180+1"]
[Date "2023.08.15"]
[WhiteClock "0:00:02"]
[BlackClock "0:00:02"]
[Board "13"]

1. d4 {[%clk 0:03:00]}  Nf6 {[%clk 0:02:49]} 2. c4 {[%clk 0:03:01]}  e6 {[%clk 0:02:49]} 3. Nf3 {[%clk 0:03:00]}  d5 {[%clk 0:02:48]} 4. Bg5 {[%clk 0:03:01]}  Be7 {[%clk 0:02:45]} 5. e3 {[%clk 0:03:00]}  O-O {[%clk 0:02:43]} 6. Qc2 {[%clk 0:03:01]}  b6 {[%clk 0:02:41]} 7. Nc3 {[%clk 0:02:52]}  Bb7 {[%clk 0:02:39]} 8. Rd1 {[%clk 0:02:52]}  Nbd7 {[%clk 0:02:38]} 9. Bd3 {[%clk 0:02:47]}  Rc8 {[%clk 0:02:22]} 10. cxd5 {[%clk 0:02:45]}  exd5 {[%clk 0:02:22]} 11. Bf5 {[%clk 0:02:44]}  g6 {[%clk 0:02:06]} 12. Bh3 {[%clk 0:02:41]}  Ne4 {[%clk 0:01:51]} 13. Bh6 {[%clk 0:02:16]}  Re8 {[%clk 0:01:49]} 14. O-O {[%clk 0:02:16]}  Ra8 {[%clk 0:00:54]} 15. Nxe4 {[%clk 0:01:45]}  dxe4 {[%clk 0:00:55]} 16. Ne5 {[%clk 0:01:43]}  Nf6 {[%clk 0:00:47]} 17. Nc6 {[%clk 0:01:35]}  Qd5 {[%clk 0:00:32]} 18. Rc1 {[%clk 0:01:34]}  Bd6 {[%clk 0:00:29]} 19. Ne5 {[%clk 0:01:26]}  Bc8 {[%clk 0:00:18]} 20. Bxc8 {[%clk 0:01:21]}  Raxc8 {[%clk 0:00:19]} 21. Qa4 {[%clk 0:01:21]}  a5 {[%clk 0:00:18]} 22. Bg5 {[%clk 0:01:20]}  Nh5 {[%clk 0:00:13]} 23. Bh4 {[%clk 0:01:15]}  Bxe5 {[%clk 0:00:07]} 24. dxe5 {[%clk 0:01:16]}  Qxe5 {[%clk 0:00:08]} 25. Rfd1 {[%clk 0:01:15]}  Re6 {[%clk 0:00:05]} 26. Qd7 {[%clk 0:01:14]}  Ree8 {[%clk 0:00:04]} 27. Rc6 {[%clk 0:01:09]}  Qf5 {[%clk 0:00:02]} 28. g4 {[%clk 0:00:54]}  Qxd7 {[%clk 0:00:02]} 29. Rxd7 {[%clk 0:00:55]}  Ng7 {[%clk 0:00:03]} 30. Rcxc7 {[%clk 0:00:55]}  Rxc7 {[%clk 0:00:04]} 31. Rxc7 {[%clk 0:00:56]}  Ne6 {[%clk 0:00:04]} 32. Rb7 {[%clk 0:00:56]}  g5 {[%clk 0:00:04]} 33. Bg3 {[%clk 0:00:56]}  Rc8 {[%clk 0:00:04]} 34. Rxb6 {[%clk 0:00:53]}  h5 {[%clk 0:00:04]} 35. gxh5 {[%clk 0:00:52]}  Rc5 {[%clk 0:00:04]} 36. h6 {[%clk 0:00:47]}  Kh7 {[%clk 0:00:04]} 37. Rb7 {[%clk 0:00:47]}  Kxh6 {[%clk 0:00:04]} 38. Rxf7 {[%clk 0:00:47]}  Kg6 {[%clk 0:00:05]} 39. Ra7 {[%clk 0:00:45]}  g4 {[%clk 0:00:05]} 40. Kg2 {[%clk 0:00:44]}  Ng5 {[%clk 0:00:05]} 41. Re7 {[%clk 0:00:40]}  Rc1 {[%clk 0:00:04]} 42. Bb8 {[%clk 0:00:27]}  Nf3 {[%clk 0:00:04]} 43. Kg3 {[%clk 0:00:27]}  Kf5 {[%clk 0:00:05]} 44. Rf7+ {[%clk 0:00:27]}  Kg5 {[%clk 0:00:06]} 45. Rg7+ {[%clk 0:00:23]}  Kf5 {[%clk 0:00:06]} 46. Rf7+ {[%clk 0:00:20]}  Kg5 {[%clk 0:00:06]} 47. h4+ {[%clk 0:00:06]}  gxh3 {[%clk 0:00:06]} 48. Kxh3 {[%clk 0:00:04]}  Rh1+ {[%clk 0:00:06]} 49. Kg2 {[%clk 0:00:05]}  Rg1+ {[%clk 0:00:07]} 50. Kh3 {[%clk 0:00:06]}  Rh1+ {[%clk 0:00:02]} 51. Kg3 {[%clk 0:00:06]}  Rg1+ {[%clk 0:00:03]} 52. Kh3 {[%clk 0:00:06]}  Kg6 {[%clk 0:00:02]} 53. Rf8 {[%clk 0:00:04]}  Ng5+ {[%clk 0:00:03]} 54. Kh2 {[%clk 0:00:04]}  Rb1 {[%clk 0:00:03]} 55. b3 {[%clk 0:00:02]}  Nf3+ {[%clk 0:00:03]} 56. Kg3 {[%clk 0:00:02]}  Kg5 {[%clk 0:00:04]} 57. Rg8+ {[%clk 0:00:02]}  Kf5 {[%clk 0:00:04]} 58. Rf8+ {[%clk 0:00:03]}  Kg5 {[%clk 0:00:05]} 59. Bf4+ {[%clk 0:00:03]}  Kg6 {[%clk 0:00:05]} 60. Kg4 {[%clk 0:00:03]}  Rb2 {[%clk 0:00:04]} 61. Bg3 {[%clk 0:00:04]}  Rxa2 {[%clk 0:00:05]} 62. Kf4 {[%clk 0:00:04]}  Nd2 {[%clk 0:00:04]} 63. Rd8 {[%clk 0:00:04]}  Nxb3 {[%clk 0:00:04]} 64. Kxe4 {[%clk 0:00:04]}  a4 {[%clk 0:00:05]} 65. Kd3 {[%clk 0:00:04]}  a3 {[%clk 0:00:05]} 66. Kc3 {[%clk 0:00:04]}  Nc5 {[%clk 0:00:04]} 67. Ra8 {[%clk 0:00:04]}  Ne4+ {[%clk 0:00:05]} 68. Kb3 {[%clk 0:00:04]}  Re2 {[%clk 0:00:02]} 69. Bh4 {[%clk 0:00:02]}  Nxf2 {[%clk 0:00:01]} 70. Rxa3 {[%clk 0:00:02]}  Rxe3+ {[%clk 0:00:02]} 71. Ka2 {[%clk 0:00:02]}  Rxa3+ {[%clk 0:00:02]} 72. Kxa3 {[%clk 0:00:02]} 1/2-1/2


[Site "https://www.chess.com"]

[Event "Titled Tuesday Blitz August 15 Late 2023"]
[White "Lagarde, Maxime"]
[Black "Indjic, Aleksandar"]
[WhiteFideId "662399"]
[BlackFideId "911925"]
[WhiteElo "2861"]
[BlackElo "2994"]
[Result "1-0"]
[Round "6"]
[TimeControl "180+1"]
[Date "2023.08.15"]
[WhiteClock "0:01:21"]
[BlackClock "0:00:00"]
[Board "14"]

1. Nc3 {[%clk 0:03:00]}  d5 {[%clk 0:02:56]} 2. e4 {[%clk 0:03:00]}  dxe4 {[%clk 0:02:55]} 3. Nxe4 {[%clk 0:03:01]}  Nf6 {[%clk 0:02:54]} 4. Nxf6+ {[%clk 0:03:00]}  exf6 {[%clk 0:02:55]} 5. Nf3 {[%clk 0:02:54]}  Bd6 {[%clk 0:02:55]} 6. Be2 {[%clk 0:02:55]}  O-O {[%clk 0:02:55]} 7. O-O {[%clk 0:02:56]}  c6 {[%clk 0:02:53]} 8. d3 {[%clk 0:02:55]}  Re8 {[%clk 0:02:53]} 9. h3 {[%clk 0:02:56]}  Na6 {[%clk 0:02:53]} 10. Re1 {[%clk 0:02:55]}  Nc7 {[%clk 0:02:53]} 11. Bf1 {[%clk 0:02:55]}  Be6 {[%clk 0:02:53]} 12. Bd2 {[%clk 0:02:54]}  h6 {[%clk 0:02:34]} 13. c4 {[%clk 0:02:53]}  Qd7 {[%clk 0:02:27]} 14. Bc3 {[%clk 0:02:48]}  Bf5 {[%clk 0:02:25]} 15. Qd2 {[%clk 0:02:36]}  Ne6 {[%clk 0:02:24]} 16. Re2 {[%clk 0:02:03]}  Bf4 {[%clk 0:02:22]} 17. Qe1 {[%clk 0:02:00]}  Bxd3 {[%clk 0:01:59]} 18. Rd1 {[%clk 0:01:59]}  Nc5 {[%clk 0:01:47]} 19. b4 {[%clk 0:01:47]}  Ne6 {[%clk 0:00:24]} 20. Re4 {[%clk 0:01:34]}  Ng5 {[%clk 0:00:12]} 21. Nxg5 {[%clk 0:01:28]}  hxg5 {[%clk 0:00:04]} 22. Rxd3 {[%clk 0:01:23]}  Rxe4 {[%clk 0:00:04]} 23. Rxd7 {[%clk 0:01:21]}  Rxe1 {[%clk 0:00:03]} 24. Bxe1 {[%clk 0:01:22]}  Re8 {[%clk 0:00:00]} 25. Bc3 {[%clk 0:01:21]} 1-0


[Site "https://www.chess.com"]

[Event "Titled Tuesday Blitz August 15 Late 2023"]
[White "Remizov, Yaroslav"]
[Black "Hakobyan, Aram"]
[WhiteFideId "34134015"]
[BlackFideId "13306677"]
[WhiteElo "2847"]
[BlackElo "2968"]
[Result "0-1"]
[Round "6"]
[TimeControl "180+1"]
[Date "2023.08.15"]
[WhiteClock "0:00:03"]
[BlackClock "0:00:51"]
[Board "15"]

1. e4 {[%clk 0:02:59]}  c5 {[%clk 0:02:58]} 2. Nf3 {[%clk 0:02:59]}  Nc6 {[%clk 0:02:58]} 3. Bb5 {[%clk 0:02:58]}  e6 {[%clk 0:02:58]} 4. Bxc6 {[%clk 0:02:56]}  bxc6 {[%clk 0:02:58]} 5. b3 {[%clk 0:02:56]}  d6 {[%clk 0:02:57]} 6. e5 {[%clk 0:02:20]}  d5 {[%clk 0:02:55]} 7. O-O {[%clk 0:02:12]}  Ne7 {[%clk 0:02:55]} 8. d3 {[%clk 0:02:05]}  Ng6 {[%clk 0:02:55]} 9. c4 {[%clk 0:02:04]}  f6 {[%clk 0:02:52]} 10. Re1 {[%clk 0:01:53]}  Be7 {[%clk 0:02:51]} 11. Bb2 {[%clk 0:01:39]}  O-O {[%clk 0:02:49]} 12. Nbd2 {[%clk 0:01:38]}  Rb8 {[%clk 0:02:46]} 13. g3 {[%clk 0:01:31]}  Rb7 {[%clk 0:02:46]} 14. Qe2 {[%clk 0:01:29]}  Qe8 {[%clk 0:02:43]} 15. h4 {[%clk 0:01:25]}  Nh8 {[%clk 0:02:27]} 16. exf6 {[%clk 0:01:18]}  gxf6 {[%clk 0:02:26]} 17. Rac1 {[%clk 0:01:00]}  d4 {[%clk 0:02:21]} 18. Nh2 {[%clk 0:00:53]}  e5 {[%clk 0:02:20]} 19. f4 {[%clk 0:00:42]}  Nf7 {[%clk 0:02:14]} 20. Ng4 {[%clk 0:00:38]}  Qd7 {[%clk 0:02:04]} 21. Nf2 {[%clk 0:00:26]}  Kh8 {[%clk 0:01:59]} 22. Kh2 {[%clk 0:00:24]}  Rg8 {[%clk 0:01:57]} 23. fxe5 {[%clk 0:00:23]}  Nxe5 {[%clk 0:01:54]} 24. Nde4 {[%clk 0:00:23]}  Qf5 {[%clk 0:01:42]} 25. Kg2 {[%clk 0:00:07]}  Qg6 {[%clk 0:01:42]} 26. Nh1 {[%clk 0:00:07]}  Bg4 {[%clk 0:01:40]} 27. Qf2 {[%clk 0:00:07]}  Nxd3 {[%clk 0:01:39]} 28. Qf1 {[%clk 0:00:05]}  Nxb2 {[%clk 0:01:27]} 29. Rc2 {[%clk 0:00:06]}  Bf5 {[%clk 0:01:21]} 30. Qf3 {[%clk 0:00:06]}  Bg4 {[%clk 0:01:02]} 31. Qf1 {[%clk 0:00:05]}  Nd1 {[%clk 0:01:02]} 32. Rf2 {[%clk 0:00:01]}  Nxf2 {[%clk 0:01:02]} 33. Qxf2 {[%clk 0:00:01]}  Rd7 {[%clk 0:00:58]} 34. Qf4 {[%clk 0:00:01]}  Qf5 {[%clk 0:00:52]} 35. Qd2 {[%clk 0:00:01]}  Bf3+ {[%clk 0:00:52]} 36. Kh2 {[%clk 0:00:01]}  Bxe4 {[%clk 0:00:53]} 37. Nf2 {[%clk 0:00:01]}  Bd6 {[%clk 0:00:52]} 38. Nxe4 {[%clk 0:00:01]}  Be5 {[%clk 0:00:50]} 39. Qd3 {[%clk 0:00:01]}  Rdg7 {[%clk 0:00:50]} 40. Rf1 {[%clk 0:00:01]}  Qg4 {[%clk 0:00:49]} 41. Rf3 {[%clk 0:00:01]}  Qxh4+ {[%clk 0:00:49]} 42. Kg2 {[%clk 0:00:02]}  Bxg3 {[%clk 0:00:46]} 43. Nxg3 {[%clk 0:00:02]}  Rxg3+ {[%clk 0:00:46]} 44. Rxg3 {[%clk 0:00:03]}  Rxg3+ {[%clk 0:00:46]} 45. Qxg3 {[%clk 0:00:04]}  Qxg3+ {[%clk 0:00:47]} 46. Kxg3 {[%clk 0:00:04]}  h5 {[%clk 0:00:47]} 47. Kf4 {[%clk 0:00:05]}  h4 {[%clk 0:00:48]} 48. b4 {[%clk 0:00:05]}  h3 {[%clk 0:00:48]} 49. Kg3 {[%clk 0:00:05]}  d3 {[%clk 0:00:49]} 50. b5 {[%clk 0:00:04]}  cxb5 {[%clk 0:00:49]} 51. cxb5 {[%clk 0:00:05]}  d2 {[%clk 0:00:50]} 52. b6 {[%clk 0:00:03]}  axb6 {[%clk 0:00:51]} 0-1


[Site "https://www.chess.com"]